[Event "French-ch U12-U14 2024"]
[Site "Agen"]
[Date "2024.04.15"]
[Round "2.16"]
[White "Yastrebov, Andrey"]
[Black "Breuil, Virgile"]
[Result "1/2-1/2"]
[ECO "A13"]
[WhiteElo "1845"]
[BlackElo "2307"]
[Annotator "TA"]
[PlyCount "147"]
[EventDate "2024.04.14"]
[EventType "swiss"]
[EventCountry "FRA"]
[SourceTitle "playchess.com"]
[Source "ChessBase"]
[SourceQuality "1"]
[TimeControl "5400+30"]

{[%evp 15,147,16,19,-6,6,0,0,0,0,-6,-2,-6,13,0,0,0,0,0,0,0,4,-2,0,0,64,60,70,64,60,38,115,104,177,172,191,181,259,261,323,165,159,133,129,127,147,110,171,95,175,122,194,141,145,140,126,-246,0,0,0,0,0,0,0,0,0,0,0,0,0,0,64,71,74,12,8,8,8,15,16,0,10,0,0,0,0,0,0,0,0,0,715,673,226,34,34,34,87,19,24,0,0,0,0,0,0,0,0,0,0,0,0,0,0,0,0,0,0,0,0,0,0,0,0,0,0,0,0,0,0,0,0,0,0,0]} 1. Nf3 {[%emt 0:00:03]} d5 {[%emt 0:00:14]} 2. c4 {[%emt 0:00:05]} c6 {[%emt 0:00:17]} 3. g3 {[%emt 0:00:15]} Nf6 {[%emt 0:00:49]} 4. Bg2 {[%emt 0:00:29]} Nbd7 {[%emt 0:01:48]} 5. O-O {[%emt 0:02:24]} e6 {[%emt 0:01:43]} 6. b3 {[%emt 0:01:15]} Bd6 {[%emt 0:02:45]} 7. d3 {[%emt 0:01:35]} O-O {[%emt 0:03:29]} 8. Bb2 {[%emt 0:01:01]} Re8 {[%emt 0:03:55]} 9. Nbd2 {[%emt 0:01:26]} e5 {[%emt 0:03:09]} 10. cxd5 {[%emt 0:06:35]} cxd5 {[%emt 0:01:01]} 11. e4 {[%emt 0:01:52]} d4 {[%emt 0:02:58]} 12. Nc4 {[%emt 0:01:11]} Bc7 {[%emt 0:06:16]} 13. a4 {[%emt 0:04:03]} Nf8 {[%emt 0:07:49]} 14. Ba3 {[%emt 0:04:12]} Ng6 {[%emt 0:02:02]} 15. Qd2 {[%emt 0:01:31]} a6 {[%emt 0:01:19]} 16. Bb4 {[%emt 0:09:24]} Be6 {[%emt 0:02:05]} 17. Rfc1 {[%emt 0:00:56]} h6 {[%emt 0:05:47]} 18. Rab1 {[%emt 0:05:12][%cal Ba1b1,Bb1b3,Bb3b6][%mdl 32]} Qd7 {[%emt 0:02:35]} 19. Ba5 {[%emt 0:01:52]} Bxa5 {[%emt 0:22:00]} (19... b5 $11 20. Bxc7 bxc4 (20... Qxc7 $2 21. Ncxe5 Qa7 22. Nxg6 $18)) 20. Qxa5 $14 {[%emt 0:00:37]} Bxc4 {[%emt 0:02:50]} 21. bxc4 {[%emt 0:01:35]} Rab8 {[%emt 0:03:35]} 22. Rb3 {[%emt 0:01:34]} Re7 {[%emt 0:02:23]} (22... Qc8 $14) 23. Rcb1 $1 $16 {[%emt 0:01:07]} Kf8 {[%emt 0:07:58]} (23... Ree8 $16) 24. Rb6 $18 {[%emt 0:02:31]} Qc7 {[%emt 0:01:35]} 25. Bh3 {[%emt 0:00:28] And now c5 would win.} Kg8 {[%emt 0:02:49]} (25... Nd7 $142) 26. Qb4 {[%emt 0:01:26]} Nd7 {[%emt 0:02:05]} 27. Bxd7 {[%emt 0:00:48]} ({Much less strong is} 27. Rxb7 Qxb7 28. Qxb7 Rxb7 29. Rxb7 Nc5 30. Rb8+ Nf8) (27. Rxg6 $142 Nc5 28. Rb6) 27... Qxd7 {[%emt 0:00:15]} 28. Rxa6 {[%emt 0:00:41] White is much more active.} bxa6 {[%emt 0:01:32]} 29. Qxb8+ {[%emt 0:00:07]} Re8 {[%emt 0:00:06]} 30. Qb3 {[%emt 0:03:18]} Qh3 {[%emt 0:01:13]} (30... Qg4 $16 {was worth a try.} 31. Qd1 Rc8 (31... Nf4 32. h4 $16)) 31. Qd1 {[%emt 0:02:54]} (31. Ne1 $18) 31... Re6 {[%emt 0:01:09]} (31... Qg4 $16 32. h4 Rf8 (32... Nf4 $2 33. Nxd4 Qxd1+ 34. Rxd1 $18)) 32. Qf1 {[%emt 0:00:54]} (32. Ne1 $18) 32... Qh5 {[%emt 0:00:24]} (32... Qg4 $16 {was called for.} 33. Nd2 Rf6) 33. Qg2 {[%emt 0:01:25]} (33. Rb8+ $18 Kh7 34. Qe2) 33... Nf4 $16 {[%emt 0:04:33]} 34. gxf4 {[%emt 0:00:50]} Rg6 {[%emt 0:00:17]} 35. Rb8+ {[%emt 0:00:06]} (35. Ng5 $1 $16 hxg5 36. fxe5) 35... Kh7 $11 {[%emt 0:00:05]} 36. Ng5+ $1 {[%emt 0:00:07]} hxg5 {[%emt 0:01:10][%mdl 4096] Endgame. KQR-KQR} 37. f5 {[%emt 0:00:37]} Rh6 {[%emt 0:00:23]} 38. f3 {[%emt 0:05:30] Qg3 would now be deadly.} g4 $1 {[%emt 0:01:56]} 39. fxg4 {[%emt 0:02:11]} Qg5 {[%emt 0:00:04]} 40. Kh1 {[%emt 0:02:33]} f6 {[%emt 0:01:02]} 41. Rb1 {[%emt 0:00:42]} Qe3 {[%emt 0:00:28] Wards off Re1} 42. Rd1 {[%emt 0:01:12]} Rh3 {[%emt 0:00:19]} (42... Kg8 $1 $11) 43. c5 $14 {[%emt 0:01:08]} Rf3 {[%emt 0:00:14]} 44. c6 {[%emt 0:01:30]} ({White should try} 44. Rg1 $16) 44... Rf2 $11 {[%emt 0:00:26]} 45. Qg3 {[%emt 0:03:09]} Qxg3 {[%emt 0:00:15]} 46. hxg3 {[%emt 0:00:01] KR-KR} Rc2 {[%emt 0:00:08] Repels Rc1} 47. Kg1 {[%emt 0:02:00]} Rxc6 {[%emt 0:00:28]} 48. Rb1 {[%emt 0:00:55]} Rc3 {[%emt 0:00:42]} 49. Rd1 {[%emt 0:02:18]} Ra3 {[%emt 0:00:25]} 50. Kf2 {[%emt 0:00:28][%cal Og4g5]} Rxa4 {[%emt 0:00:14]} 51. g5 {[%emt 0:00:18]} fxg5 {[%emt 0:01:18]} 52. Kf3 {[%emt 0:00:06]} g6 $2 {[%emt 0:00:30][%mdl 8192] [#]} (52... Ra3 $11) 53. Kg4 $1 $18 {[%emt 0:00:26] Strongly threatening f6.} gxf5+ {[%emt 0:01:07]} 54. Kxf5 $2 {[%emt 0:00:09]} ({White has to play} 54. exf5 $18 Ra3 55. Kxg5) 54... Ra5 $1 $14 {[%emt 0:00:35]} 55. Kxg5 {[%emt 0:00:07] Hoping for Kf6.} Rc5 {[%emt 0:00:32] [#]} (55... Rb5 $14) 56. Kf6 {[%emt 0:00:32]} ({White should play} 56. g4 $1 $16) 56... a5 $1 $11 {[%emt 0:00:17]} 57. g4 {[%emt 0:00:05] Threatens to win with Rh1+.} a4 {[%emt 0:00:35] The position is equal.} 58. g5 {[%emt 0:00:10] Black must now prevent Rh1+.} a3 {[%emt 0:00:25]} 59. Ra1 {[%emt 0:01:19]} (59. Rb1 $5 Rc6+ $8 60. Kxe5 $15) 59... Ra5 {[%emt 0:00:43]} 60. Kf7 {[%emt 0:00:30][%cal Ra1h1]} Ra7+ {[%emt 0:00:13]} 61. Kf6 {[%emt 0:00:15]} Ra5 {[%emt 0:00:06]} 62. g6+ {[%emt 0:00:39]} Kg8 {[%emt 0:00:15]} 63. Rb1 {[%emt 0:00:30][%cal Rb1b8]} Ra6+ {[%emt 0:00:30]} 64. Kxe5 {[%emt 0:00:14]} a2 {[%emt 0:00:06]} 65. Ra1 {[%emt 0:00:08]} Ra4 {[%emt 0:00:21]} 66. Kf5 {[%emt 0:02:05]} Kg7 {[%emt 0:00:38]} 67. e5 {[%emt 0:00:43]} Ra5 {[%emt 0:00:08]} 68. Ke4 {[%emt 0:00:44]} Kxg6 {[%emt 0:00:06]} 69. Kxd4 {[%emt 0:00:25]} Kf5 {[%emt 0:00:04]} 70. Rf1+ {[%emt 0:00:43]} Ke6 {[%emt 0:00:09]} 71. Ra1 {[%emt 0:00:03]} Ra4+ {[%emt 0:00:13]} 72. Kc3 {[%emt 0:00:08]} Kxe5 {[%emt 0:00:09]} 73. Kb3 {[%emt 0:00:06]} Ra8 {[%emt 0:00:12]} 74. Rxa2 {[%emt 0:00:05] Weighted Error Value: White=0.30/Black=0.18 (very precise) .  Loses game:     	---       	Black=1      Missed win:     	---       	Black=1      Mistake:       	White=7     	Black=9      OK:         	White=19    	Black=27     Best:        	White=4     	Black=7      Strong:       	White=3     	Black=2} 1/2-1/2

[Event "French-ch U12-U14 2024"]
[Site "Agen"]
[Date "2024.04.15"]
[Round "2.17"]
[White "Boulos, Paul"]
[Black "Vlandas, Baptiste"]
[Result "1-0"]
[ECO "B31"]
[WhiteElo "2189"]
[BlackElo "1834"]
[Annotator "TA"]
[PlyCount "61"]
[EventDate "2024.04.14"]
[EventType "swiss"]
[EventCountry "FRA"]
[SourceTitle "playchess.com"]
[Source "ChessBase"]
[SourceQuality "1"]
[TimeControl "5400+30"]

{[%evp 23,61,0,18,13,14,20,25,14,23,22,29,31,35,49,60,68,54,0,0,0,0,0,0,0,66,51,46,-5,0,5,4,0,0,0,0,0,7,0,0,0]} 1. e4 {[%emt 0:00:03]} c5 {[%emt 0:00:09]} 2. Nf3 {[%emt 0:00:25]} Nc6 {[%emt 0:00:11]} 3. Bb5 {[%emt 0:00:35]} g6 {[%emt 0:00:07]} 4. c3 {[%emt 0:00:55]} Bg7 {[%emt 0:00:18]} 5. d4 {[%emt 0:00:07]} cxd4 {[%emt 0:00:25]} 6. cxd4 {[%emt 0:00:08]} Nf6 {[%emt 0:00:19][%cal Bg8f6,Bf6d5,Bd5c3][%mdl 32]} 7. e5 {[%emt 0:00:59]} Nd5 {[%emt 0:00:40]} 8. Nc3 {[%emt 0:00:06]} Nxc3 {[%emt 0:01:52]} 9. bxc3 {[%emt 0:00:14]} O-O {[%emt 0:00:19]} 10. O-O {[%emt 0:01:21]} d6 {[%emt 0:04:24]} 11. exd6 {[%emt 0:00:57]} Qxd6 {[%emt 0:00:42]} 12. a4 {[%emt 0:01:51]} Rd8 {[%emt 0:01:51]} 13. Ba3 {[%emt 0:05:15]} Qc7 {[%emt 0:00:30]} 14. Bxc6 {[%emt 0:04:32]} bxc6 {[%emt 0:07:50]} 15. Qe2 {[%emt 0:02:30] White has an edge.} Bf6 {[%emt 0:04:00]} 16. Rfe1 {[%emt 0:03:42][%cal Ra3e7]} Be6 {[%emt 0:01:56]} 17. Nd2 {[%emt 0:03:50][%cal Bf3d2,Bd2e4,Be4c5][%mdl 32]} Rab8 {[%emt 0:14:42]} 18. Ne4 {[%emt 0:02:12]} a5 {[%emt 0:04:46]} 19. Nc5 {[%emt 0:06:37]} Bc8 {[%emt 0:01:10]} 20. Rab1 {[%emt 0:01:37]} (20. Bc1 $14) 20... Rxb1 $11 {[%emt 0:03:02]} 21. Rxb1 {[%emt 0:00:10]} e5 {[%emt 0:00:21]} 22. Ne4 {[%emt 0:05:04]} Bg7 {[%emt 0:06:19]} 23. Bc5 {[%emt 0:07:28]} exd4 {[%emt 0:10:06]} ({Black should play} 23... Bf5 $11) 24. Bb6 $14 {[%emt 0:13:04]} Qb8 {[%emt 0:01:29]} 25. Qd3 {[%emt 0:06:07]} (25. Qe1 $1 $14 Rd5 26. Bxd4) 25... Re8 {[%emt 0:03:15][%cal Oe8e4] [#] ...Rxe4! is the strong threat. The position is equal.} 26. Bxd4 {[%emt 0:02:55]} Qf4 {[%emt 0:00:57]} 27. Re1 {[%emt 0:04:00][%cal Oe4f6] aiming for Nf6+!} Rd8 $1 {[%emt 0:07:21]} 28. Qc4 {[%emt 0:09:06]} Bxd4 {[%emt 0:07:00]} 29. cxd4 {[%emt 0:00:32]} Bf5 {[%emt 0:01:02]} 30. Qxc6 {[%emt 0:05:19]} Bxe4 {[%emt 0:02:35]} (30... Rxd4 $2 {is the wrong capture.} 31. g3 Rxe4 32. Qe8+ (32. gxf4 Rxe1+ 33. Kg2 Be4+) 32... Kg7 33. gxf4 $18) 31. Rxe4 {[%emt 0:04:54][%mdl 32768] Weighted Error Value: White=0.09 (flawless) /Black=0.07 (flawless) .  Mistake:       	White=2     	Black=1      OK:         	White=6     	Black=8      Best:        	White=2     	---        Strong:       	---       	Black=1     . Loss on time!?} 1-0

[Event "French-ch U12-U14 2024"]
[Site "Agen"]
[Date "2024.04.15"]
[Round "2.18"]
[White "Potier, Eloan"]
[Black "Borne, Felix"]
[Result "0-1"]
[ECO "B62"]
[WhiteElo "1840"]
[BlackElo "2163"]
[Annotator "TA"]
[PlyCount "52"]
[EventDate "2024.04.14"]
[EventType "swiss"]
[EventCountry "FRA"]
[SourceTitle "playchess.com"]
[Source "ChessBase"]
[SourceQuality "1"]
[TimeControl "5400+30"]

{[%evp 15,51,27,34,0,0,-20,-17,-63,-44,-59,-76,-80,-68,-89,-96,-168,-150,-147,-148,-195,-196,-217,-193,-228,-200,-271,-264,-264,-66,-1018,-1004,-29990,-29991,-29997,-29998,-29998,-29999,-29999]} 1. e4 {[%emt 0:00:05]} c5 {[%emt 0:00:05]} 2. Nf3 {[%emt 0:00:04]} Nc6 {[%emt 0:00:06]} 3. d4 {[%emt 0:00:03]} cxd4 {[%emt 0:00:07]} 4. Nxd4 {[%emt 0:00:04]} Nf6 {[%emt 0:00:06]} 5. Nc3 {[%emt 0:00:04]} d6 {[%emt 0:00:11]} 6. Bg5 {[%emt 0:06:52]} e6 {[%emt 0:00:46]} 7. Qd3 {[%emt 0:00:05]} Be7 {[%emt 0:03:46]} 8. O-O-O {[%emt 0:00:33]} O-O {[%emt 0:08:43]} 9. Nxc6 {[%emt 0:06:22]} bxc6 {[%emt 0:00:07]} 10. f4 {[%emt 0:03:41]} d5 {[%emt 0:04:41]} 11. e5 {[%emt 0:12:29]} (11. Qg3 $11) 11... Nd7 $15 {[%emt 0:00:48]} 12. Bxe7 {[%emt 0:00:19]} Qxe7 {[%emt 0:00:04]} 13. Qg3 {[%emt 0:00:07]} a5 {[%emt 0:07:09]} 14. Bd3 {[%emt 0:05:26]} Ba6 {[%emt 0:00:50]} 15. f5 {[%emt 0:08:26] [#]} (15. Rhe1 $17 {is a better defense.}) 15... exf5 $1 $19 {[%emt 0:07:13]} 16. Bxf5 {[%emt 0:00:23] Hoping for Qh3.} Nxe5 {[%emt 0:01:59]} 17. Rde1 {[%emt 0:00:47]} (17. Rhe1 $17 Rae8 18. Bd7 Nd3+ (18... Qxd7 19. Rxe5 Rxe5 20. Qxe5 $17) 19. cxd3 Qxd7 20. d4) 17... f6 {[%emt 0:02:18]} 18. h4 {[%emt 0:02:38]} Qd6 {[%emt 0:05:39][%cal Oe5d3]} 19. Kb1 {[%emt 0:16:51]} Rab8 {[%emt 0:00:18][%cal Ob8b2] ...Rxb2+! would now be deadly.} 20. Nd1 {[%emt 0:01:08]} Kh8 {[%emt 0:04:08]} 21. h5 {[%emt 0:05:35]} Nc4 $2 {[%emt 0:02:23]} ({Better is} 21... c5 $19 {Strongly threatening ...d4.} 22. Re3 d4) 22. Qg4 $2 {[%emt 0:03:19][%mdl 8192] [#]} (22. Qxd6 $15 Nxd6 23. Bd7) 22... Rxb2+ $3 {[%emt 0:08:36][%mdl 512]} 23. Kc1 {[%emt 0:03:22]} (23. Nxb2 Qb4) 23... Rxa2 {[%emt 0:03:24][%cal Ra2a1] Black mates.} 24. Kb1 {[%emt 0:02:27] [#]} Ra1+ $3 {[%emt 0:00:19][%mdl 512]} 25. Kxa1 {[%emt 0:00:07]} Qa3+ {[%emt 0:00:04]} 26. Kb1 {[%emt 0:00:06]} Nd2# {[%emt 0:00:10] Black took control after the opening.   Weighted Error Value: White=0.83/Black=0.19 (very precise) .  Loses game:     	White=1     	---        Missed win:     	---       	Black=1      Mistake:       	White=3     	---        Inaccurate:     	White=2     	---        OK:         	White=1     	Black=5      Best:        	---       	Black=2      Strong:       	---       	Black=1} 0-1

[Event "French-ch U12-U14 2024"]
[Site "Agen"]
[Date "2024.04.15"]
[Round "2.19"]
[White "Auribault, Louis"]
[Black "Kouam, Noe"]
[Result "1-0"]
[ECO "C10"]
[WhiteElo "2137"]
[BlackElo "1824"]
[Annotator "NA RC"]
[PlyCount "107"]
[EventDate "2024.04.14"]
[EventType "swiss"]
[EventCountry "FRA"]
[SourceTitle "playchess.com"]
[Source "ChessBase"]
[SourceQuality "1"]
[TimeControl "5400+30"]

1. e4 {[%emt 0:00:07]} e6 {[%emt 0:00:19]} 2. d4 {[%emt 0:00:05]} d5 {[%emt 0:00:21]} 3. Nd2 {[%emt 0:00:26]} dxe4 {[%emt 0:00:45]} 4. Nxe4 {[%emt 0:00:34]} Nd7 {[%emt 0:00:28]} 5. Nf3 {[%emt 0:01:21]} Ngf6 {[%emt 0:01:46]} 6. Nxf6+ {[%emt 0:00:46]} gxf6 {[%emt 0:02:41] C10: French with 3 Nc3: Unusual Black 3rd moves and 3...dxe4.} 7. Bd3 {[%emt 0:02:21]} Bd6 {[%emt 0:04:09]} (7... c5 $14) 8. O-O {[%emt 0:03:22]} c6 {[%emt 0:07:43]} 9. Re1 {[%emt 0:03:16]} Qc7 {[%emt 0:02:24]} 10. c4 {[%emt 0:04:59]} Be7 {[%emt 0:03:54]} 11. Re4 {[%emt 0:07:07]} Nf8 {[%emt 0:16:03]} 12. Bf4 {[%emt 0:07:24]} Bd6 {[%emt 0:00:36]} 13. Bh6 {[%emt 0:00:13]} Ng6 {[%emt 0:09:20]} 14. c5 {[%emt 0:03:51]} Be7 {[%emt 0:01:57]} 15. b4 {[%emt 0:04:50]} Rg8 {[%emt 0:02:59]} 16. Qd2 {[%emt 0:01:04]} e5 {[%emt 0:01:58]} 17. dxe5 {[%emt 0:05:57]} fxe5 {[%emt 0:00:15]} 18. Rae1 {[%emt 0:04:10]} Bf5 {[%emt 0:09:10]} 19. Rxe5 {[%emt 0:03:56]} Nxe5 {[%emt 0:03:11]} 20. Nxe5 {[%emt 0:00:38]} Rd8 {[%emt 0:00:58]} 21. Qf4 {[%emt 0:00:07]} Be6 {[%emt 0:02:02]} 22. Bxh7 {[%emt 0:04:02]} Rg4 {[%emt 0:02:13]} 23. Nxg4 {[%emt 0:01:05]} Qxf4 $18 {[%emt 0:00:25]} 24. Bxf4 {[%emt 0:00:02]} Bxg4 {[%emt 0:00:32]} 25. Bd6 {[%emt 0:01:34]} Be6 {[%emt 0:00:09]} 26. Bxe7 {[%emt 0:01:17]} Kxe7 {[%emt 0:00:02]} 27. f4 {[%emt 0:00:12]} Kf6 {[%emt 0:00:14]} 28. a3 {[%emt 0:01:21]} Rd2 {[%emt 0:00:30]} 29. Be4 {[%emt 0:00:16]} a6 {[%emt 0:01:39]} 30. Re3 {[%emt 0:02:38]} Rd4 {[%emt 0:02:37]} 31. Kf2 {[%emt 0:00:32]} a5 {[%emt 0:01:21]} 32. bxa5 {[%emt 0:00:45]} Ra4 {[%emt 0:00:07]} 33. Kf3 {[%emt 0:00:13]} Rxa5 {[%emt 0:00:23]} 34. Rc3 {[%emt 0:00:05]} Ra4 {[%emt 0:00:28]} 35. h3 {[%emt 0:00:43]} Rd4 {[%emt 0:01:26]} 36. g4 {[%emt 0:00:47]} Bc8 {[%emt 0:00:14]} 37. g5+ {[%emt 0:04:16]} Kg7 {[%emt 0:00:23]} 38. f5 {[%emt 0:00:10]} f6 {[%emt 0:00:13]} 39. h4 {[%emt 0:02:51]} Rd1 {[%emt 0:00:53]} 40. Kf4 {[%emt 0:31:07]} Rd4 {[%emt 0:00:40]} 41. Rd3 {[%emt 0:00:00]} Rxd3 {[%emt 0:01:05]} 42. Bxd3 {[%emt 0:00:00]} Bd7 {[%emt 0:00:30]} 43. g6 {[%emt 0:00:00]} Be8 {[%emt 0:01:35]} 44. Be2 {[%emt 0:00:00]} Kh6 {[%emt 0:00:40]} 45. Bg4 {[%emt 0:00:00]} Kg7 {[%emt 0:00:22]} 46. Ke4 {[%emt 0:00:00]} Bd7 {[%emt 0:01:40]} 47. Kd4 {[%emt 0:00:00]} Kf8 {[%emt 0:00:47]} 48. Kc4 {[%emt 0:00:00]} Ke7 {[%emt 0:00:36]} 49. h5 {[%emt 0:00:00]} Be8 {[%emt 0:00:17]} 50. h6 {[%emt 0:00:00]} Kf8 {[%emt 0:00:09]} 51. Kb4 {[%emt 0:00:00]} Bd7 {[%emt 0:00:22]} 52. g7+ {[%emt 0:00:00]} Kg8 {[%emt 0:00:13]} 53. Bd1 {[%emt 0:00:00]} Be8 {[%emt 0:00:11]} 54. Bb3+ {[%emt 0:00:00]} 1-0

[Event "French-ch U12-U14 2024"]
[Site "Agen"]
[Date "2024.04.15"]
[Round "3.1"]
[White "Garivier, Jeanne"]
[Black "Alcantara, Levanah"]
[Result "0-1"]
[ECO "D02"]
[WhiteElo "1567"]
[BlackElo "1756"]
[Annotator "NA RC"]
[PlyCount "76"]
[EventDate "2024.04.14"]
[EventType "swiss"]
[EventCountry "FRA"]
[SourceTitle "playchess.com"]
[Source "ChessBase"]
[SourceQuality "1"]
[TimeControl "5400+30"]

1. d4 {[%emt 0:00:07]} Nf6 {[%emt 0:00:10]} 2. Bf4 {[%emt 0:00:06]} d5 {[%emt 0:00:13]} 3. Nf3 {[%emt 0:00:08]} e6 {[%emt 0:00:10]} 4. e3 {[%emt 0:00:07]} c5 {[%emt 0:00:08]} 5. c3 {[%emt 0:00:30]} Nc6 {[%emt 0:00:24]} 6. Bd3 {[%emt 0:00:32]} Bd6 {[%emt 0:00:19]} 7. Bg3 {[%emt 0:00:09]} O-O {[%emt 0:00:40]} 8. Nbd2 {[%emt 0:00:36]} a6 {[%emt 0:02:18]} 9. Bh4 {[%emt 0:07:54]} b5 {[%emt 0:02:39]} 10. e4 {[%emt 0:12:02]} cxd4 {[%emt 0:04:25]} 11. cxd4 {[%emt 0:18:05]} dxe4 {[%emt 0:04:16]} 12. Bxe4 {[%emt 0:02:13]} Bb7 {[%emt 0:01:23]} 13. O-O {[%emt 0:23:34]} Be7 {[%emt 0:03:55]} 14. Bxc6 {[%emt 0:04:04]} Bxc6 {[%emt 0:00:27]} 15. Rc1 {[%emt 0:04:14]} Bb7 {[%emt 0:03:02]} 16. Qe2 {[%emt 0:04:10]} Nd5 {[%emt 0:04:00]} 17. Bg3 {[%emt 0:01:14]} Qb6 {[%emt 0:03:08]} 18. Rfd1 {[%emt 0:05:08]} Rac8 {[%emt 0:01:46]} 19. Nf1 {[%emt 0:08:44]} Bf6 {[%emt 0:05:14]} 20. Be5 {[%emt 0:02:08]} Bxe5 {[%emt 0:01:22]} 21. dxe5 {[%emt 0:00:06]} Nf4 {[%emt 0:02:02]} 22. Qe3 {[%emt 0:01:57]} Qxe3 {[%emt 0:00:58]} 23. Nxe3 {[%emt 0:00:37]} Rxc1 {[%emt 0:00:33]} 24. Rxc1 {[%emt 0:00:05]} Ne2+ {[%emt 0:00:06]} 25. Kf1 {[%emt 0:00:06]} Nxc1 {[%emt 0:00:05]} 26. a3 {[%emt 0:00:30]} Rd8 {[%emt 0:00:22]} 27. h4 {[%emt 0:01:34]} a5 {[%emt 0:00:34]} 28. Nh2 {[%emt 0:01:03]} b4 {[%emt 0:00:27]} 29. axb4 {[%emt 0:00:10]} axb4 {[%emt 0:00:08]} 30. f4 {[%emt 0:00:17]} b3 {[%emt 0:00:19]} 31. Nc4 {[%emt 0:00:28]} Ba6 {[%emt 0:00:12]} 32. g4 {[%emt 0:00:10]} Bxc4+ {[%emt 0:00:07]} 33. Ke1 {[%emt 0:00:11]} Nd3+ {[%emt 0:00:12]} 34. Kd2 {[%emt 0:00:16]} Nxb2+ {[%emt 0:00:17]} 35. Kc3 {[%emt 0:00:37]} Na4+ {[%emt 0:00:12]} 36. Kxc4 {[%emt 0:00:16]} b2 {[%emt 0:00:05]} 37. Kb3 {[%emt 0:00:08]} b1=Q+ {[%emt 0:00:09]} 38. Kxa4 {[%emt 0:00:03]} Ra8# {[%emt 1:02:43]} 0-1

[Event "French-ch U12-U14 2024"]
[Site "Agen"]
[Date "2024.04.15"]
[Round "3.3"]
[White "Manouvel, Maelys"]
[Black "Anseeuw, Emma"]
[Result "1-0"]
[ECO "B94"]
[WhiteElo "1541"]
[BlackElo "1667"]
[Annotator "NA RC"]
[PlyCount "51"]
[EventDate "2024.04.14"]
[EventType "swiss"]
[EventCountry "FRA"]
[SourceTitle "playchess.com"]
[Source "ChessBase"]
[SourceQuality "1"]
[TimeControl "5400+30"]

1. e4 {[%emt 0:00:26]} c5 {[%emt 0:00:10]} 2. Nf3 {[%emt 0:00:17]} d6 {[%emt 0:00:23]} 3. d4 {[%emt 0:00:27]} cxd4 {[%emt 0:00:23]} 4. Nxd4 {[%emt 0:00:14]} Nf6 {[%emt 0:00:18]} 5. Nc3 {[%emt 0:00:17]} a6 {[%emt 0:00:15]} 6. Bg5 {[%emt 0:00:27]} Nbd7 {[%emt 0:00:37]} 7. f4 {[%emt 0:04:40]} b5 {[%emt 0:00:53]} 8. Be2 {[%emt 0:07:58]} Bb7 {[%emt 0:01:27]} 9. Bf3 {[%emt 0:06:33]} Rb8 {[%emt 0:17:29]} 10. O-O {[%emt 0:06:53]} e6 {[%emt 0:01:26]} 11. Re1 {[%emt 0:09:09]} h6 {[%emt 0:07:04]} 12. Bxf6 {[%emt 0:04:44]} Qxf6 {[%emt 0:03:29]} 13. Qd2 {[%emt 0:05:07]} Qd8 {[%emt 0:08:39]} 14. e5 {[%emt 0:03:39]} d5 {[%emt 0:01:22]} 15. f5 {[%emt 0:01:06]} exf5 {[%emt 0:22:46]} 16. e6 {[%emt 0:02:08]} Nf6 {[%emt 0:02:33]} 17. Nxf5 {[%emt 0:04:10]} Bc5+ {[%emt 0:04:22]} 18. Kh1 {[%emt 0:01:02]} Rg8 {[%emt 0:04:14]} 19. exf7+ {[%emt 0:01:58]} Kxf7 {[%emt 0:00:40]} 20. a3 {[%emt 0:01:59]} b4 {[%emt 0:03:25]} 21. Na4 {[%emt 0:02:38]} Bf8 {[%emt 0:04:56]} 22. axb4 {[%emt 0:02:46]} Bc8 {[%emt 0:02:03]} 23. Bxd5+ {[%emt 0:01:01]} Kg6 {[%emt 0:00:33]} 24. Bf7+ {[%emt 0:00:22]} Kxf7 {[%emt 0:01:02]} 25. Qxd8 {[%emt 0:00:10]} Bxb4 {[%emt 0:00:30]} 26. Qc7+ {[%emt 0:00:29]} 1-0